bitfinex-derivatives/quotes_BTCF0:USTF0_20241231
["timestamp","ask_amount","ask_price","bid_price","bid_amount"]
[1735639577733,0.055255,94037.0,94036.0,0.3608]
[1735639578140,0.055255,94037.0,94036.0,0.414056]
[1735639579435,0.058255,94037.0,94036.0,0.414056]
[1735639583436,0.005,94037.0,94036.0,0.414056]
[1735639590843,0.00159527,94056.0,94055.0,0.053245]
[1735639591143,0.05484027,94056.0,94055.0,0.414045]
[1735639591447,0.00159527,94056.0,94055.0,0.414045]
[1735639592038,0.00459527,94056.0,94055.0,0.414045]
[1735639592244,0.01359527,94056.0,94055.0,0.415045]
[1735639592842,0.00259527,94056.0,94055.0,0.414045]
[1735639593051,0.00359527,94056.0,94055.0,0.414045]
[1735639593640,0.00359527,94056.0,94055.0,0.774845]
[1735639593949,0.00359527,94056.0,94055.0,0.807145]
[1735639596151,0.05684027,94056.0,94055.0,0.3608]
[1735639596651,0.11125545,94056.0,94055.0,0.3608]
[1735639596837,0.05801045,94056.0,94039.0,0.3608]
[1735639597041,0.053254,94040.0,94039.0,0.3608]
[1735639598549,0.052254,94040.0,94039.0,0.3608]
[1735639599243,0.058254,94040.0,94039.0,0.3608]
[1735639599638,0.006,94040.0,94039.0,0.414054]
[1735639600448,0.059254,94040.0,94039.0,0.414054]
[1735639605357,0.059254,94040.0,94039.0,0.3608]
[1735639607262,0.053258,94032.0,94031.0,0.3608]
[1735639608470,0.053258,94032.0,94031.0,0.414059]
[1735639612276,0.053252,94045.0,94044.0,0.053251]
[1735639612473,0.053252,94045.0,94044.0,0.414051]
[1735639613268,0.053252,94045.0,94031.0,0.00068]
[1735639613469,0.053252,94045.0,94016.0,0.3608]
[1735639613470,0.3608,94037.0,94016.0,0.3608]
[1735639613771,0.053265,94020.0,94016.0,0.3608]
[1735639614672,0.053266,94018.0,94016.0,0.3608]
[1735639615067,0.052266,94018.0,94016.0,0.3608]
[1735639615771,0.052266,94018.0,94017.0,0.05486227]
[1735639616375,0.047266,94018.0,94017.0,0.05486227]
[1735639617077,0.047266,94018.0,94017.0,0.05786227]
[1735639618073,0.048266,94018.0,94017.0,0.06286227]
[1735639618680,0.047266,94018.0,94017.0,0.05786227]
[1735639618874,0.048266,94018.0,94017.0,0.05786227]
[1735639619779,0.001,94018.0,94017.0,0.05786227]
[1735639620279,0.001,94018.0,94017.0,1.55786227]
[1735639621771,0.0316,94054.0,94017.0,1.80459527]
[1735639622081,0.053247,94054.0,94053.0,0.053245]
[1735639622281,0.053247,94054.0,94053.0,0.02671231]
[1735639624382,0.055247,94054.0,94053.0,0.02671231]
[1735639624585,0.064247,94054.0,94053.0,0.02771231]
[1735639625186,0.055247,94054.0,94053.0,0.02671231]
[1735639625490,0.055247,94054.0,94053.0,0.02771231]
[1735639625491,0.061247,94054.0,94053.0,0.02771231]
[1735639628385,0.008,94054.0,94053.0,0.02771231]
[1735639630386,0.006,94054.0,94053.0,0.02771231]
[1735639631292,0.053241,94063.0,94062.0,0.053241]
[1735639631489,0.053241,94063.0,94062.0,0.414041]
[1735639632485,0.058241,94063.0,94062.0,0.415041]
[1735639632686,0.060241,94063.0,94062.0,0.415041]
[1735639634094,0.060241,94063.0,94062.0,0.3618]
[1735639634294,0.060241,94063.0,94062.0,0.001]
[1735639634492,0.060241,94063.0,94062.0,0.0005073]
[1735639634690,0.007,94063.0,94042.0,0.3608]
[1735639634885,0.053252,94043.0,94042.0,0.3608]
[1735639635084,0.053257,94034.0,94033.0,0.3608]
[1735639635293,0.053257,94034.0,94022.0,0.3608]
[1735639635498,0.053263,94023.0,94022.0,0.3608]
[1735639635999,0.051263,94023.0,94022.0,0.3608]
[1735639636900,0.051263,94023.0,94022.0,0.3618]
[1735639638499,0.051263,94023.0,94022.0,0.3648]
[1735639638695,0.0319,94032.0,94022.0,0.3648]
[1735639638900,0.053261,94028.0,94027.0,0.05326]
[1735639640797,0.053259,94031.0,94023.0,0.053263]
[1735639640996,0.053259,94031.0,94030.0,0.3608]
[1735639642295,0.054259,94031.0,94030.0,0.3608]
[1735639643099,0.055259,94031.0,94030.0,0.3608]
[1735639644406,0.055259,94031.0,93938.0,0.01596]
[1735639644407,0.002,94031.0,94012.0,0.3608]
[1735639644703,0.053266,94018.0,94012.0,0.3608]
[1735639645090,0.053266,94018.0,94017.0,0.00081485]
[1735639645701,0.053266,94018.0,94017.0,0.00181485]
[1735639646209,0.053266,94018.0,94017.0,0.001]
[1735639646507,0.053266,94018.0,94010.0,0.3608]
[1735639646508,0.05327,94011.0,94010.0,0.3608]
[1735639648097,0.05427,94011.0,94010.0,0.3608]
[1735639648297,0.05527,94011.0,94010.0,0.3608]
[1735639653606,0.05527,94011.0,94010.0,0.414071]
[1735639654305,0.05427,94011.0,94010.0,0.414071]
[1735639654809,0.05427,94011.0,94010.0,0.3608]
[1735639655008,0.05327,94011.0,94010.0,0.3608]
[1735639655215,0.05427,94011.0,94010.0,0.3608]
[1735639655398,0.05427,94011.0,94010.0,0.414071]
[1735639655598,0.05327,94011.0,94010.0,0.414071]
[1735639655799,0.05427,94011.0,94010.0,0.414071]
[1735639656102,0.05527,94011.0,94010.0,0.414071]
[1735639661110,0.05427,94011.0,94010.0,0.414071]
[1735639661313,0.05327,94011.0,94010.0,0.414071]
[1735639662209,0.05427,94011.0,94010.0,0.3540926]
[1735639662407,0.05527,94011.0,94010.0,0.3540926]
[1735639665318,0.053276,94001.0,94000.0,0.153276]
[1735639665511,0.053276,94001.0,94000.0,0.1]
[1735639667113,0.053276,94001.0,94000.0,0.102]
[1735639667316,0.053276,94001.0,94000.0,0.104]
[1735639668320,0.053276,94001.0,94000.0,0.4648]
[1735639669421,0.053276,94001.0,94000.0,0.518076]
[1735639673724,0.053274,94005.0,94004.0,0.053272]
[1735639674819,0.053274,94005.0,94004.0,0.055272]
[1735639675422,0.053274,94005.0,94004.0,0.0285883]
[1735639676313,0.053271,94011.0,94010.0,0.05327]
[1735639677626,0.055271,94011.0,94010.0,0.05327]
[1735639679013,0.002,94011.0,94000.0,0.514076]
[1735639679215,0.053273,94006.0,94000.0,0.514076]
[1735639679737,0.03885009,94017.0,94000.0,0.514076]
[1735639680024,0.05327,94012.0,94011.0,0.3608]
[1735639680722,0.09181387,94012.0,94011.0,0.3608]
[1735639681225,0.09381387,94012.0,94011.0,0.3608]
[1735639682820,0.05527,94012.0,94011.0,0.3608]
[1735639683214,0.05627,94012.0,94011.0,0.3608]
[1735639685624,0.05627,94012.0,94000.0,0.4614]
[1735639685625,0.003,94012.0,94000.0,0.4614]
[1735639685823,0.053276,94001.0,94000.0,0.4608]
[1735639686932,0.053276,94001.0,94000.0,0.4638]
[1735639687417,0.053276,94001.0,94000.0,0.4658]
[1735639688516,0.053276,94001.0,94000.0,0.40581395]
[1735639689418,0.053276,94001.0,93990.0,0.3608]
[1735639689419,0.414076,94001.0,93990.0,0.3608]
[1735639689620,0.053281,93991.0,93990.0,0.3608]
[1735639690224,0.053289,93978.0,93977.0,0.3608]
[1735639690722,0.053289,93978.0,93973.0,0.0331]
[1735639690723,0.053285,93985.0,93973.0,0.0331]
[1735639690927,0.053291,93974.0,93973.0,0.0331]
[1735639691229,0.050291,93974.0,93973.0,0.0331]
[1735639693033,0.047291,93974.0,93973.0,0.0331]
[1735639693732,0.048291,93974.0,93973.0,0.0331]
[1735639694624,0.049291,93974.0,93973.0,0.0361]
[1735639695335,0.049291,93974.0,93973.0,0.003]
[1735639700823,0.002,93974.0,93973.0,0.056293]
[1735639701034,0.053283,93992.0,93973.0,0.003]
[1735639701234,0.053283,93992.0,93991.0,0.3608]
[1735639701531,0.053283,93992.0,93991.0,0.30080671]
[1735639701721,0.053283,93992.0,93991.0,0.35408971]
[1735639702929,0.054283,93992.0,93991.0,0.35408971]
[1735639703539,0.001,93992.0,93991.0,0.35408971]
[1735639703928,0.002,93992.0,93991.0,0.35408971]
[1735639704535,0.002,93992.0,93991.0,0.38698571]
[1735639705638,0.115368,94018.0,94001.0,0.053277]
[1735639705639,0.053268,94018.0,94001.0,0.053277]
[1735639705828,0.053272,94010.0,94009.0,0.3608]
[1735639706138,0.053272,94010.0,94009.0,0.477073]
[1735639707035,0.054272,94010.0,94009.0,0.477073]
[1735639707629,0.055272,94010.0,94009.0,0.477073]
[1735639710632,0.055272,94010.0,94009.0,0.4238]
[1735639710931,0.055272,94010.0,94009.0,0.063]
[1735639711138,0.055272,94010.0,94009.0,0.4238]
[1735639711333,0.055272,94010.0,94009.0,0.477073]
[1735639712625,0.055272,94010.0,94009.0,0.41709254]
[1735639714238,0.055272,94010.0,94009.0,0.36910828]
[1735639715437,0.002,94010.0,94009.0,0.36910828]
[1735639717932,0.002,94010.0,94009.0,0.40228095]
[1735639718232,0.0015959,94020.0,94019.0,0.053266]
[1735639718540,0.0015959,94020.0,94019.0,0.414066]
[1735639719636,0.0075959,94020.0,94019.0,0.414066]
[1735639720132,0.0055959,94020.0,94019.0,0.414066]
[1735639721927,0.0035959,94020.0,94019.0,0.414066]
[1735639722836,0.055266,94020.0,94019.0,0.38921419]
[1735639723142,0.17638343,94020.0,93999.0,0.3608]
[1735639723337,0.053277,94000.0,93999.0,0.3608]
[1735639724049,0.052277,94000.0,93999.0,0.3608]
[1735639725842,0.053277,94000.0,93999.0,0.3628]
[1735639726232,0.052277,94000.0,93999.0,0.3628]
[1735639726432,0.001,94000.0,93999.0,0.416077]
[1735639726633,0.001,94000.0,93999.0,1.916077]
[1735639728050,0.053269,94015.0,94014.0,0.053269]
[1735639728240,0.053269,94015.0,94014.0,0.414069]
[1735639728629,0.053269,94015.0,94014.0,0.35409459]
[1735639729243,0.055269,94015.0,94014.0,0.35409459]
[1735639729545,0.059269,94015.0,94014.0,0.35409459]
[1735639729933,0.059269,94015.0,94014.0,0.40736359]
[1735639738549,0.059269,94015.0,94014.0,0.35409459]
[1735639738744,0.059269,94015.0,93999.0,0.3916]
[1735639739047,0.053275,94006.0,94005.0,0.053274]
[1735639740148,0.053275,94006.0,93999.0,0.3614]
[1735639740442,0.414078,94000.0,93995.0,0.00159563]
[1735639740647,0.05328,93996.0,93995.0,0.00159563]
[1735639741537,0.05128,93996.0,93995.0,0.00159563]
[1735639742546,0.05228,93996.0,93995.0,0.00359563]
[1735639742846,0.05228,93996.0,93995.0,0.05687563]
[1735639743744,0.001,93996.0,93995.0,0.05687563]
[1735639744151,0.002,93996.0,93995.0,0.00159563]
[1735639744339,0.003,93996.0,93995.0,0.05487563]
[1735639746158,0.05628,93996.0,93995.0,0.05487563]
[1735639747053,0.003,93996.0,93995.0,0.05487563]
[1735639747248,0.001,93996.0,93995.0,0.05487563]
[1735639747552,0.002,93996.0,93995.0,0.05487563]
[1735639747849,0.001,93996.0,93995.0,0.05487563]
[1735639748152,0.002,93996.0,93995.0,0.05487563]
[1735639749052,0.055281,93996.0,93995.0,0.05487563]
[1735639750347,0.055281,93996.0,93995.0,0.00159563]
[1735639751446,0.055281,93996.0,93995.0,0.00082536]
[1735639751652,0.056281,93996.0,93995.0,0.00082536]
[1735639752256,0.056281,93996.0,93995.0,0.00056664]
[1735639752455,0.053283,93991.0,93990.0,0.3608]
[1735639753949,0.053283,93991.0,93990.0,0.414084]
[1735639766770,0.053283,93991.0,93990.0,0.35409221]
[1735639767771,0.053283,93991.0,93990.0,0.28076891]
[1735639776882,0.053283,93991.0,93990.0,0.22077712]
[1735639777762,0.33242461,94000.0,93990.0,0.16749312]
[1735639777974,0.053282,93995.0,93994.0,0.053281]
[1735639781178,0.054282,93995.0,93994.0,0.053281]
[1735639781478,0.056282,93995.0,93994.0,0.053281]
[1735639782769,0.053289,93981.0,93980.0,0.36136]
[1735639782975,0.053289,93981.0,93980.0,0.3608]
[1735639783181,0.053289,93981.0,93970.0,0.3608]
[1735639783372,0.053294,93972.0,93970.0,0.3608]
[1735639783571,0.053294,93972.0,93968.0,0.053296]
[1735639783974,0.052294,93972.0,93968.0,0.053296]
[1735639784467,0.052294,93972.0,93967.0,0.3608]
[1735639784670,0.052294,93972.0,93971.0,0.001104]
[1735639784881,0.052294,93972.0,93971.0,0.002104]
[1735639785770,0.052294,93972.0,93971.0,0.0575226]
[1735639786578,0.053294,93972.0,93971.0,0.0565226]
[1735639786770,0.053294,93972.0,93971.0,0.02720776]
[1735639787275,0.053303,93957.0,93942.0,0.03656429]
[1735639787472,0.3608,93949.0,93948.0,0.053308]
[1735639789975,0.18412759,93949.0,93948.0,0.053308]
[1735639790168,0.18512759,93949.0,93948.0,0.053308]
[1735639790481,0.18612759,93949.0,93948.0,0.053308]
[1735639792672,0.002,93949.0,93948.0,0.053308]
[1735639796180,0.262405,93959.0,93944.0,0.3608]
[1735639796685,0.315708,93959.0,93958.0,0.053302]
[1735639797487,0.054303,93959.0,93958.0,0.053302]
[1735639797888,0.055303,93959.0,93958.0,0.053302]
[1735639798591,0.002,93959.0,93958.0,0.053302]
[1735639799085,0.002,93959.0,93958.0,1.553302]
[1735639799476,0.002,93959.0,93958.0,1.554302]
[1735639799887,0.002,93959.0,93958.0,1.555302]
[1735639801591,0.3608,93972.0,93967.0,0.053297]
[1735639801782,0.053291,93977.0,93967.0,0.053297]
[1735639802490,0.053291,93977.0,93976.0,0.053292]
[1735639803884,0.053291,93977.0,93976.0,0.055292]
[1735639804181,0.053291,93977.0,93976.0,0.056292]
[1735639805494,0.3608,93978.0,93976.0,0.003]
[1735639805682,0.3608,93978.0,93977.0,0.05178741]
[1735639806482,0.3608,93978.0,93977.0,0.03585091]
[1735639806694,0.3917,93980.0,93978.0,0.053291]
[1735639806883,0.08519,93979.0,93978.0,0.053291]
[1735639808390,0.08519,93979.0,93978.0,0.054291]
[1735639809392,0.08519,93979.0,93978.0,0.056291]
[1735639809583,0.08519,93979.0,93978.0,0.003]
[1735639813084,0.05329,93979.0,93978.0,0.003]
[1735639813289,0.05329,93979.0,93978.0,0.056291]
[1735639816398,0.05329,93979.0,93978.0,0.003]
[1735639817891,0.053292,93975.0,93974.0,0.02717239]
[1735639823795,0.2631157,93980.0,93969.0,0.053296]
[1735639823999,0.053291,93979.0,93978.0,0.05329]
[1735639826999,0.053295,93970.0,93969.0,0.053294]
[1735639828401,0.2631157,93980.0,93966.0,0.38763887]
[1735639828599,0.053294,93974.0,93973.0,0.053292]
[1735639829908,0.054294,93974.0,93973.0,0.053292]
[1735639831309,0.053297,93970.0,93969.0,0.053295]
[1735639832905,0.053297,93970.0,93966.0,0.3608]
[1735639832906,0.053297,93967.0,93966.0,0.3608]
[1735639833405,0.053297,93967.0,93966.0,0.414098]
[1735639834110,0.054297,93967.0,93966.0,0.414098]
[1735639834705,0.054297,93967.0,93950.0,0.0715317]
[1735639834706,0.053301,93960.0,93949.0,0.053307]
[1735639834910,0.414101,93960.0,93945.0,0.15354002]
[1735639835103,0.414101,93960.0,93946.0,0.053308]
[1735639835298,0.414101,93960.0,93945.0,0.15354002]
[1735639835501,0.05331,93944.0,93934.0,0.19086118]
[1735639835701,0.053315,93935.0,93934.0,0.19086118]
[1735639835909,0.053319,93929.0,93928.0,0.053319]
[1735639836104,0.053319,93929.0,93925.0,0.3608]
[1735639836105,0.05332,93926.0,93925.0,0.3608]
[1735639836308,0.414116,93933.0,93924.0,0.00159677]
[1735639836607,0.414121,93925.0,93924.0,0.00159677]
[1735639838914,0.44094894,93925.0,93924.0,0.00159677]
[1735639839109,0.44194894,93925.0,93924.0,0.00159677]
[1735639841515,0.415121,93925.0,93924.0,1.50159677]
[1735639842415,0.3618,93925.0,93924.0,1.55491777]
[1735639845710,0.36172801,93925.0,93924.0,1.55491777]
[1735639846114,0.36172801,93925.0,93924.0,0.00159677]
[1735639846317,0.41504901,93925.0,93924.0,0.00159677]
[1735639847206,0.36172801,93925.0,93924.0,0.05491777]
[1735639851022,0.36172801,93925.0,93924.0,0.05591777]
[1735639851824,0.36172801,93925.0,93924.0,0.05691777]
[1735639852319,0.36072801,93925.0,93924.0,0.06091777]
[1735639855817,0.05332,93926.0,93925.0,0.053321]
[1735639856923,0.05332,93926.0,93925.0,0.057321]
[1735639857631,0.05332,93926.0,93925.0,0.058321]
[1735639860032,0.45502,93943.0,93925.0,0.005]
[1735639860332,0.053317,93933.0,93932.0,0.053316]
[1735639861832,0.053313,93940.0,93939.0,0.053312]
[1735639862519,0.42284,93943.0,93932.0,0.001]
[1735639862520,0.36144,93943.0,93932.0,0.001]
[1735639862719,0.3608,93943.0,93932.0,0.001]
[1735639863225,0.003,93940.0,93939.0,0.053313]
[1735639864330,0.004,93940.0,93939.0,0.053313]
[1735639865123,0.053316,93936.0,93935.0,0.053315]
[1735639866326,0.001,93936.0,93935.0,0.053315]
[1735639866933,0.002,93936.0,93935.0,0.053315]
[1735639867133,0.055315,93936.0,93935.0,0.053315]
[1735639867517,0.002,93936.0,93935.0,0.053315]
[1735639868536,0.001,93936.0,93935.0,0.053315]
[1735639869034,0.053313,93939.0,93938.0,0.053314]
[1735639870734,0.054313,93939.0,93938.0,0.053314]
[1735639870937,0.055313,93939.0,93938.0,0.053314]
[1735639871239,0.053316,93935.0,93934.0,0.053316]
[1735639872132,0.053318,93930.0,93929.0,0.083818]
[1735639872937,0.052318,93930.0,93929.0,0.053318]
[1735639873137,0.053321,93925.0,93908.0,0.053331]
[1735639873332,0.053321,93925.0,93924.0,0.00026572]
[1735639873638,0.050321,93925.0,93924.0,0.00026572]
[1735639874337,0.048321,93925.0,93924.0,0.00026572]
[1735639874540,0.048321,93925.0,93924.0,0.00126572]
[1735639875126,0.053328,93913.0,93912.0,0.053328]
[1735639875331,0.053335,93901.0,93900.0,0.1]
[1735639875734,0.414135,93901.0,93900.0,0.1]
[1735639877136,0.415135,93901.0,93900.0,0.1]
[1735639883453,0.415135,93901.0,93900.0,0.105]
[1735639883855,0.414135,93901.0,93900.0,0.102]
[1735639884146,0.415135,93901.0,93900.0,0.105]
[1735639891751,0.054335,93901.0,93900.0,0.105]
[1735639891959,0.001,93901.0,93900.0,0.158335]
[1735639892152,0.053326,93917.0,93915.0,0.053326]
[1735639892342,0.053323,93923.0,93919.0,0.02265474]
[1735639892539,0.00064,93925.0,93919.0,0.02265474]
[1735639892753,0.05332,93928.0,93919.0,0.02265474]
[1735639893645,0.00659772,93920.0,93919.0,0.02365474]
[1735639895054,0.003,93920.0,93919.0,0.02365474]
[1735639895247,0.053316,93934.0,93933.0,0.053314]
[1735639895447,0.414113,93939.0,93938.0,0.053314]
[1735639895756,0.3608,93943.0,93942.0,0.053312]
[1735639895951,0.414111,93943.0,93942.0,0.053312]
[1735639896153,0.3608,93943.0,93942.0,0.053312]
[1735639897554,0.3638,93943.0,93942.0,0.053312]
[1735639897757,0.005,93943.0,93942.0,0.053312]
[1735639899757,0.003,93943.0,93942.0,0.08307648]
[1735639900055,0.002,93943.0,93942.0,0.08307648]
[1735639900352,0.001,93943.0,93942.0,0.08407648]
[1735639900744,0.0246,93948.0,93947.0,0.053309]
[1735639902055,0.077908,93948.0,93947.0,0.053309]
[1735639903062,0.0276,93948.0,93942.0,0.3608]
[1735639904056,0.053312,93943.0,93942.0,0.053311]
[1735639906350,0.054312,93943.0,93942.0,0.053311]
[1735639906858,0.053312,93943.0,93942.0,0.053311]
[1735639907055,0.056312,93943.0,93942.0,0.053311]
[1735639907656,0.055312,93943.0,93942.0,0.053311]
[1735639907954,0.056312,93943.0,93942.0,0.053311]
[1735639909363,0.056312,93943.0,93942.0,0.02354175]
[1735639914761,0.003,93943.0,93942.0,0.02354175]
[1735639915161,0.056311,93943.0,93942.0,0.02354175]
[1735639916565,0.003,93943.0,93936.0,0.053315]
[1735639916767,0.003,93943.0,93938.0,0.053313]
[1735639917067,0.053314,93939.0,93938.0,0.053313]
[1735639918963,0.053317,93935.0,93934.0,0.053316]
[1735639919370,0.053321,93926.0,93925.0,0.05332]
[1735639920467,0.053321,93926.0,93925.0,0.05932]
[1735639921173,0.053321,93926.0,93925.0,0.006]
[1735639921968,0.053321,93926.0,93925.0,0.00271277]
[1735639922360,0.053321,93926.0,93925.0,0.00571277]
[1735639926165,0.02970044,93932.0,93925.0,0.00571277]
[1735639926361,0.053321,93926.0,93925.0,0.00571277]
[1735639928772,0.053321,93926.0,93925.0,0.05903377]
[1735639931471,0.053321,93926.0,93925.0,0.00571277]
[1735639932569,0.053331,93907.0,93906.0,0.00159724]
[1735639933076,0.053331,93907.0,93906.0,0.00022744]
[1735639933469,0.053331,93907.0,93906.0,0.00014743]
[1735639933873,0.053331,93907.0,93906.0,0.00114743]
[1735639935073,0.053331,93907.0,93906.0,0.00314743]
[1735639937778,0.0784455,93907.0,93906.0,0.00314743]
[1735639939295,0.053335,93901.0,93900.0,0.1]
[1735639939487,0.053342,93889.0,93888.0,0.053342]
[1735639941681,0.053342,93889.0,93884.0,0.3608]
[1735639941682,0.053344,93885.0,93884.0,0.3608]
[1735639942290,0.048344,93885.0,93884.0,0.3608]
[1735639942591,0.052346,93882.0,93881.0,0.00159771]
[1735639942786,0.049346,93882.0,93881.0,0.00159771]
[1735639943379,0.048346,93882.0,93881.0,0.00159771]
[1735639943885,0.048346,93882.0,93870.0,0.053352]
[1735639944084,0.053352,93871.0,93870.0,0.053352]
[1735639944289,0.25425261,93873.0,93870.0,0.053352]
[1735639944494,0.053352,93871.0,93870.0,0.053352]
[1735639945587,0.053352,93871.0,93870.0,0.07870791]
[1735639946601,0.053352,93871.0,93870.0,0.02535591]
[1735639946794,0.053355,93865.0,93864.0,0.053355]
[1735639947489,0.001,93871.0,93870.0,0.053352]
[1735639948291,0.001,93871.0,93870.0,1.553352]
[1735639948493,0.3608,93893.0,93892.0,0.05334]
[1735639948808,0.414139,93893.0,93892.0,0.05334]
[1735639950092,0.421139,93893.0,93892.0,0.05334]
[1735639950398,0.425139,93893.0,93892.0,0.05334]
[1735639950590,0.3718,93893.0,93892.0,0.05334]
[1735639951301,0.011,93893.0,93892.0,0.05334]
[1735639951692,0.011,93893.0,93892.0,0.41414]
[1735639955201,0.011,93893.0,93892.0,0.05334]
[1735639964802,0.064339,93893.0,93892.0,0.05334]
[1735639973007,0.011,93893.0,93892.0,0.05334]
[1735639976699,0.064339,93893.0,93892.0,0.05334]
[1735639976904,0.064339,93893.0,93892.0,0.02371675]
[1735639977611,0.064339,93893.0,93879.0,0.053347]
[1735639977808,0.0362,93892.0,93879.0,0.053347]
[1735639978111,0.053342,93891.0,93890.0,0.053341]
[1735639978310,0.0358,93901.0,93890.0,0.053341]
[1735639978311,0.3608,93913.0,93890.0,0.3608]
[1735639978512,0.0354,93946.0,93912.0,0.3608]
[1735639978807,0.0354,93946.0,93945.0,0.41411]
[1735639979510,0.0246,93948.0,93945.0,0.41411]
[1735639979709,0.0246,93948.0,93947.0,0.053308]
[1735639980812,0.0316,93948.0,93947.0,0.053308]
[1735639981198,0.0316,93948.0,93945.0,0.3608]
[1735639981412,0.053309,93946.0,93945.0,0.3608]
[1735639981609,0.3608,93947.0,93940.0,0.053312]
[1735639981808,0.3608,93947.0,93927.0,0.3608]
[1735639982013,0.3608,93938.0,93927.0,0.3608]
[1735639982317,0.053319,93928.0,93927.0,0.3608]
[1735639982706,0.052319,93928.0,93927.0,0.3608]
[1735639982909,0.053322,93923.0,93922.0,0.3608]
[1735639983608,0.053328,93913.0,93909.0,0.05333]
[1735639984112,0.10907147,93917.0,93909.0,0.05333]
[1735639984509,0.053331,93908.0,93906.0,0.3608]
[1735639984812,0.053331,93908.0,93905.0,0.053332]
[1735639986006,0.053331,93908.0,93899.0,0.053335]
[1735639986306,0.053331,93908.0,93901.0,0.053334]
[1735639986611,0.053331,93908.0,93897.0,0.3608]
[1735639986915,0.060331,93908.0,93907.0,0.05492847]
[1735639987213,0.063331,93908.0,93907.0,0.05492847]
[1735639987406,0.061331,93908.0,93907.0,0.05492847]
[1735639988214,0.061331,93908.0,93907.0,0.41572847]
[1735639989106,0.063331,93908.0,93907.0,0.41572847]
[1735639989408,0.063331,93908.0,93907.0,0.36239747]
[1735639991301,0.063331,93908.0,93907.0,0.00159747]
[1735639992120,0.053337,93897.0,93896.0,0.3608]
[1735639993412,0.053348,93878.0,93877.0,0.00159797]
[1735639994204,0.414148,93878.0,93877.0,0.00159797]
[1735639994417,0.053352,93870.0,93856.0,0.09245931]
[1735639994616,0.10907147,93866.0,93856.0,0.07]
[1735639994920,0.052358,93861.0,93856.0,0.07]
[1735639995613,0.052358,93861.0,93856.0,0.072]
[1735639996213,0.052358,93861.0,93857.0,0.05336]
[1735639996418,0.052358,93861.0,93860.0,0.053358]
[1735639996622,0.053358,93861.0,93860.0,0.053358]
[1735639996918,0.053358,93861.0,93856.0,0.293878]
[1735639997108,0.053358,93861.0,93775.0,0.2162]
[1735639997109,0.0987,93858.0,93811.0,0.3608]
[1735639997309,0.053383,93817.0,93811.0,0.3608]
[1735639997517,0.46987147,93821.0,93800.0,0.1]
[1735639997714,0.46987147,93821.0,93805.0,0.0332]
[1735639997715,0.053387,93809.0,93805.0,0.0332]
[1735639998019,0.3608,93829.0,93805.0,0.394]
[1735639998210,0.10907147,93830.0,93817.0,0.3608]
[1735639998415,0.10907147,93827.0,93818.0,0.053382]
[1735639998714,0.3608,93837.0,93823.0,0.053379]
[1735639998715,0.053373,93834.0,93823.0,0.053379]
[1735639999021,0.3608,93837.0,93823.0,0.053379]
[1735639999215,0.053374,93832.0,93827.0,0.053377]
[1735639999411,0.053374,93832.0,93817.0,0.3608]
[1735639999719,0.3608,93837.0,93817.0,0.38328609]
[1735639999918,0.001,93834.0,93829.0,0.053375]
[1735640000117,0.001,93834.0,93826.0,0.3608]
[1735640000420,0.3608,93837.0,93826.0,0.3608]
[1735640000612,0.3608,93837.0,93836.0,0.053372]
[1735640001913,0.053372,93836.0,93831.0,0.053374]
[1735640002115,0.3638,93837.0,93831.0,0.053374]
[1735640002323,0.003,93834.0,93828.0,0.053376]
[1735640002625,0.003,93834.0,93827.0,0.17847147]
[1735640003025,0.003,93837.0,93836.0,0.053372]
[1735640004123,0.053377,93827.0,93826.0,0.3608]
[1735640004317,0.3668,93837.0,93818.0,0.033]
[1735640004626,0.3668,93837.0,93820.0,0.10907147]
[1735640004627,0.053376,93829.0,93820.0,0.10907147]
[1735640004926,0.3658,93837.0,93821.0,0.05338]
[1735640004927,0.053379,93823.0,93821.0,0.05338]
[1735640005825,0.002,93827.0,93818.0,0.033]
[1735640006018,0.053381,93820.0,93818.0,0.033]
[1735640007023,0.053381,93819.0,93818.0,0.035]
[1735640007821,0.053381,93819.0,93818.0,0.002]
[1735640007822,0.414181,93819.0,93818.0,0.002]
[1735640008523,0.053383,93816.0,93805.0,0.0332]
[1735640008722,0.3608,93819.0,93805.0,0.0332]
[1735640008929,0.053388,93807.0,93805.0,0.086589]
[1735640009318,0.053389,93806.0,93805.0,0.0332]
[1735640009728,0.051389,93806.0,93805.0,0.0332]
[1735640010419,0.052389,93806.0,93805.0,0.0352]
[1735640011931,0.051389,93806.0,93805.0,0.0332]
[1735640012134,0.051389,93806.0,93805.0,0.0342]
[1735640013521,0.051389,93806.0,93805.0,1.5342]
[1735640015324,0.051389,93806.0,93805.0,0.0342]
[1735640015829,0.051389,93806.0,93805.0,0.001]
[1735640022236,0.060389,93806.0,93805.0,0.001]
[1735640022436,0.053391,93801.0,93800.0,0.1]
[1735640023823,0.061391,93801.0,93800.0,0.1]
[1735640024036,0.065391,93801.0,93800.0,0.1]
[1735640025337,0.426191,93801.0,93800.0,0.1]
[1735640026033,0.426191,93801.0,93780.0,0.0207846]
[1735640026034,0.053405,93777.0,93776.0,0.19158118]
[1735640026231,0.78538635,93801.0,93775.0,0.22456118]
[1735640026232,0.053406,93776.0,93775.0,0.22456118]
[1735640027228,0.052406,93776.0,93775.0,0.19086118]
[1735640027436,0.3608,93779.0,93771.0,0.0342]
[1735640027437,0.053408,93772.0,93771.0,0.0342]
[1735640028127,0.3608,93779.0,93775.0,0.001]
[1735640028530,0.3608,93797.0,93775.0,0.001]
[1735640028531,0.3608,93788.0,93775.0,0.001]
[1735640028839,0.3608,93788.0,93774.0,0.3608]